fUSD/lending_fUSD_20250804
["ID","MTS","AMOUNT","RATE_DAILY","PERIOD"]
[377297706,1754323875113,-268.89378802,0.00053257,34]
[377297707,1754323875129,-385.56291696,0.00053288,120]
[377297708,1754323875145,-708.0,0.00053425,120]
[377297709,1754323875161,-500.0,0.00053425,120]
[377297710,1754323875176,-500.0,0.00053425,120]
[377297711,1754323875191,-742.0,0.00053425,120]
[377297712,1754323875206,-500.0,0.00053425,2]
[377297713,1754323875222,-500.0,0.00053425,120]
[377297714,1754323875237,-663.0,0.00053425,120]
[377297715,1754323875253,-557.0,0.00053425,120]
[377297716,1754323875268,-500.0,0.00053425,120]
[377297717,1754323875284,-775.95287659,0.0005344,10]
[377297718,1754323875299,-1504.73,0.0005345,120]
[377297719,1754323875314,-2000.0,0.000535,120]
[377297720,1754323875333,-151.0,0.000535,120]
[377297721,1754323875349,-411.35,0.000535,14]
[377297722,1754323875364,-2110.0,0.000535,30]
[377297723,1754323875379,-385.56291696,0.00053507,120]
[377297724,1754323875395,-523.9437056,0.00053527,120]
[377297725,1754323875411,-1733.0,0.00053539,30]
[377297726,1754323875427,-512.0,0.00053556,32]
[377297727,1754323875441,-1768.3,0.00053561,120]
[377297728,1754323875456,-500.0,0.00053589,60]
[377297729,1754323875472,-958.10858698,0.00053645,53]
[377297730,1754323875488,-6070.0,0.00053659,120]
[377297731,1754323875502,-20749.412,0.00053659,120]
[377297732,1754323875517,-500.0,0.00053691,60]
[377297733,1754323875532,-708.0,0.00053699,120]
[377297734,1754323875547,-500.0,0.00053699,120]
[377297735,1754323875562,-500.0,0.00053699,120]
[377297736,1754323875578,-742.0,0.00053699,120]
[377297737,1754323875594,-500.0,0.00053699,2]
[377297738,1754323875609,-500.0,0.00053699,120]
[377297739,1754323875625,-663.0,0.00053699,120]
[377297740,1754323875641,-557.0,0.00053699,120]
[377297741,1754323875658,-500.0,0.00053699,120]
[377297742,1754323875674,-385.56291696,0.00053699,120]
[377297743,1754323875690,-1504.73,0.00053724,120]
[377297744,1754323875705,-500.0,0.00053771,60]
[377297745,1754323875721,-523.9437056,0.00053798,120]
[377297746,1754323875736,-1018.29764191,0.000538,120]
[377297747,1754323875751,-2067.833601,0.0005386,120]
[377297748,1754323875766,-700.0,0.0005387,7]
[377297749,1754323875782,-500.0,0.0005387,7]
[377297750,1754323875798,-385.56291696,0.00053918,120]
[377297751,1754323875814,-500.0,0.00053946,120]
[377297752,1754323875830,-700.0,0.0005397,7]
[377297753,1754323875845,-500.0,0.0005397,7]
[377297754,1754323875860,-708.0,0.00053973,120]
[377297755,1754323875876,-500.0,0.00053973,120]
[377297756,1754323875891,-500.0,0.00053973,120]
[377297757,1754323875906,-500.0,0.00053973,120]
[377297758,1754323875921,-742.0,0.00053973,120]
[377297759,1754323875936,-500.0,0.00053973,2]
[377297760,1754323875951,-500.0,0.00053973,120]
[377297761,1754323875967,-663.0,0.00053973,120]
[377297762,1754323875982,-557.0,0.00053973,120]
[377297763,1754323875998,-500.0,0.00053973,120]
[377297764,1754323876013,-600.0,0.00053978,40]
[377297765,1754323876029,-151.0,0.0005399,120]
[377297766,1754323876045,-1504.73,0.00053998,120]
[377297767,1754323876060,-50000.0,0.00054,54]
[377297768,1754323876076,-50000.0,0.00054,64]
[377297769,1754323876093,-300.0,0.00054,120]
[377297770,1754323876109,-170.6884332,0.00054,120]
[377297771,1754323876124,-649.47155517,0.00054,120]
[377297772,1754323876138,-642.19886064,0.00054,120]
[377297773,1754323876153,-500.0,0.00054,120]
[377297774,1754323876169,-1000000.0,0.00054,120]
[377297775,1754323876183,-1000.0,0.00054,120]
[377297776,1754323876197,-1000.0,0.00054,120]
[377297777,1754323876212,-261.158898,0.00054,120]
[377297778,1754323876227,-428.456368,0.00054,120]
[377297779,1754323876242,-151.0,0.00054,120]
[377297780,1754323876257,-151.0,0.00054,120]
[377297781,1754323876272,-151.0,0.00054,120]
[377297782,1754323876288,-187.110399,0.00054,120]
[377297783,1754323876303,-415.606142,0.00054,120]
[377297784,1754323876318,-415.606142,0.00054,120]
[377297785,1754323876335,-281.529287,0.00054,120]
[377297786,1754323876350,-151.0,0.00054,120]
[377297787,1754323876367,-214.661825,0.00054,120]
[377297788,1754323876382,-214.661825,0.00054,120]
[377297789,1754323876399,-176.433134,0.00054,120]
[377297790,1754323876415,-151.0,0.00054,120]
[377297791,1754323876432,-463.222638,0.00054,120]
[377297792,1754323876449,-463.222638,0.00054,120]
[377297793,1754323876465,-1274.135874,0.00054,20]
[377297794,1754323876481,-391.487444,0.00054,120]
[377297795,1754323876497,-1274.135874,0.00054,20]
[377297796,1754323876512,-391.487444,0.00054,120]
[377297797,1754323876529,-151.0,0.00054,120]
[377297798,1754323876544,-151.0,0.00054,120]
[377297799,1754323876559,-151.0,0.00054,120]
[377297800,1754323876575,-151.0,0.00054,120]
[377297801,1754323876590,-151.0,0.00054,120]
[377297802,1754323876604,-151.0,0.00054,120]
[377297803,1754323876619,-256.740037,0.00054,120]
[377297804,1754323876634,-151.0,0.00054,120]
[377297805,1754323876649,-151.0,0.00054,120]
[377297806,1754323876663,-151.0,0.00054,120]
[377297807,1754323876678,-151.0,0.00054,120]
[377297808,1754323876693,-173.24989,0.00054,120]
[377297809,1754323876708,-173.24989,0.00054,120]
[377297810,1754323876722,-856.162897,0.00054,120]
[377297811,1754323876737,-856.162897,0.00054,120]
[377297812,1754323876753,-151.0,0.00054,120]
[377297813,1754323876768,-151.0,0.00054,120]
[377297814,1754323876784,-151.0,0.00054,120]
[377297815,1754323876799,-212.483811,0.00054,120]
[377297816,1754323876814,-212.483811,0.00054,120]
[377297817,1754323876829,-328.510009,0.00054,120]
[377297818,1754323876844,-328.510009,0.00054,120]
[377297819,1754323876859,-151.0,0.00054,120]
[377297820,1754323876870,-151.0,0.00054,120]
[377297821,1754323876879,-151.0,0.00054,120]
[377297822,1754323876889,-151.0,0.00054,120]
[377297823,1754323876899,-151.0,0.00054,120]
[377297824,1754323876908,-516.197833,0.00054,120]
[377297825,1754323876918,-516.197833,0.00054,120]
[377297826,1754323876928,-288.893334,0.00054,120]
[377297827,1754323876940,-288.893334,0.00054,120]
[377297828,1754323876950,-278.955316,0.00054,120]
[377297829,1754323876960,-2110.0,0.00054,30]
[377297830,1754323876970,-278.955316,0.00054,120]
[377297831,1754323876980,-151.0,0.00054,120]
[377297832,1754323876989,-151.0,0.00054,120]
[377297833,1754323876999,-766.426044,0.00054,120]
[377297834,1754323877009,-766.426044,0.00054,120]
[377297835,1754323877438,-5000.0,0.00054,30]
[377297836,1754323877461,-1314.138074,0.00054,120]
[377297837,1754323877489,-1314.138074,0.00054,120]
[377297838,1754323877507,-151.0,0.00054,120]
[377297839,1754323877530,-154.661352,0.00054,120]
[377297840,1754323877540,-151.0,0.00054,120]
[377297841,1754323877550,-151.0,0.00054,60]
[377297842,1754323877559,-216.513413,0.00054,120]
[377297843,1754323877570,-216.513413,0.00054,120]
[377297844,1754323877581,-151.0,0.00054,120]
[377297845,1754323877591,-151.0,0.00054,120]
[377297846,1754323877601,-187.016566,0.00054,120]
[377297847,1754323877611,-187.016566,0.00054,120]
[377297848,1754323877621,-556.81586,0.00054,120]
[377297849,1754323877631,-193.901658,0.00054,120]
[377297850,1754323877640,-556.81586,0.00054,120]
[377297851,1754323877649,-151.0,0.00054,120]
[377297852,1754323877660,-193.901658,0.00054,120]
[377297853,1754323877670,-151.0,0.00054,120]
[377297854,1754323877679,-151.0,0.00054,120]
[377297855,1754323877690,-151.0,0.00054,120]
[377297856,1754323877700,-151.0,0.00054,120]
[377297857,1754323877709,-151.0,0.00054,120]
[377297858,1754323877720,-512.756802,0.00054,120]
[377297859,1754323877729,-512.756802,0.00054,120]
[377297860,1754323877738,-269.725433,0.00054,120]
[377297861,1754323877748,-269.725433,0.00054,120]
[377297862,1754323877757,-151.0,0.00054,120]
[377297863,1754323877766,-309.660303,0.00054,120]
[377297864,1754323877776,-309.660303,0.00054,120]
[377297865,1754323877785,-305.054583,0.00054,120]
[377297866,1754323877795,-305.054583,0.00054,120]
[377297867,1754323877805,-704.590221,0.00054,120]
[377297868,1754323877814,-704.590221,0.00054,120]
[377297869,1754323877825,-151.0,0.00054,120]
[377297870,1754323877835,-151.0,0.00054,120]
[377297871,1754323877846,-38974.53745789,0.00054,30]
[377297872,1754323877856,-1030.083822,0.00054,120]
[377297873,1754323877866,-1030.083822,0.00054,120]
[377297874,1754323877876,-190.35187,0.00054,120]
[377297875,1754323877885,-151.0,0.00054,120]
[377297876,1754323877895,-190.35187,0.00054,120]
[377297877,1754323877905,-151.0,0.00054,120]
[377297878,1754323877915,-390.157222,0.00054,120]
[377297879,1754323877924,-390.157222,0.00054,120]
[377297880,1754323877934,-182.661135,0.00054,120]
[377297881,1754323877944,-182.661135,0.00054,120]
[377297882,1754323877953,-344.725477,0.00054,120]
[377297883,1754323877963,-344.725477,0.00054,120]
[377297884,1754323877972,-151.0,0.00054,120]
[377297885,1754323877981,-189.632918,0.00054,120]
[377297886,1754323877991,-210.11698,0.00054,120]
[377297887,1754323878001,-189.632918,0.00054,120]
[377297888,1754323878011,-210.11698,0.00054,120]
[377297889,1754323878021,-151.0,0.00054,120]
[377297890,1754323878031,-180.58715,0.00054,120]
[377297891,1754323878041,-151.0,0.00054,120]
[377297892,1754323878051,-151.0,0.00054,120]
[377297893,1754323878061,-355.511064,0.00054,120]
[377297894,1754323878071,-355.511064,0.00054,120]
[377297895,1754323878080,-151.0,0.00054,120]
[377297896,1754323878090,-492.852847,0.00054,120]
[377297897,1754323878100,-492.852847,0.00054,120]
[377297898,1754323878110,-1402.693651,0.00054,120]
[377297899,1754323878120,-360.017213,0.00054,120]
[377297900,1754323878131,-360.017213,0.00054,120]
[377297901,1754323878141,-1402.693651,0.00054,120]
[377297902,1754323878151,-319.600664,0.00054,120]
[377297903,1754323878161,-319.600664,0.00054,120]
[377297904,1754323878171,-499.430676,0.00054,120]
[377297905,1754323878180,-153.035634,0.00054,120]
[377297906,1754323878190,-153.035634,0.00054,120]
[377297907,1754323878200,-499.430676,0.00054,120]
[377297908,1754323878210,-500.0,0.00054048,60]
[377297909,1754323878220,-523.9437056,0.00054069,120]
[377297910,1754323878229,-1733.0,0.0005408,30]
[377297911,1754323878239,-789.59017182,0.0005408,30]
[377297912,1754323878249,-273.29,0.00054108,2]
[377297913,1754323878258,-500.0,0.00054135,120]
[377297914,1754323878268,-385.56291696,0.00054137,120]
[377297915,1754323878278,-512.0,0.00054142,34]
[377297916,1754323878288,-892.0,0.0005416,2]
[377297917,1754323878298,-1083.0,0.00054165,30]
[377297918,1754323878308,-139519.78,0.000542,120]
[377297919,1754323878318,-411.35,0.000542,14]
[377297920,1754323878334,-153.0,0.000542,120]
[377297921,1754323878344,-708.0,0.00054247,120]
[377297922,1754323878354,-452.23162505,0.00054247,120]
[377297923,1754323878366,-500.0,0.00054247,120]
[377297924,1754323878376,-742.0,0.00054247,120]
[377297925,1754323878386,-227.16222796,0.00054247,2]
[377297926,1754323878396,-500.0,0.00054247,120]
[377297927,1754323878406,-663.0,0.00054247,120]
[377297928,1754323878417,-557.0,0.00054247,120]
[377297929,1754323878427,-500.0,0.00054247,120]
[377297930,1754323878437,-305.643,0.00054259,102]
[377297931,1754323878446,-1504.73,0.00054272,120]
[377297932,1754323878455,-600.0,0.00054281,60]
[377297933,1754323878465,-208.0,0.000543,30]
[377297934,1754323878476,-212.0,0.000543,30]
[377297935,1754323878487,-501.16211184,0.00054312,60]
[377297936,1754323878496,-385.56291696,0.00054329,120]
[377297937,1754323878506,-523.9437056,0.0005434,120]
[377297938,1754323878516,-1500.0,0.0005436,47]
[377297939,1754323878528,-27875.412135,0.00054403,2]
[377297940,1754323878538,-188174.4476333,0.00054403,2]
[377297941,1754323878548,-4375.1117454,0.00054403,2]
[377297942,1754323878558,-7498.0693333,0.00054403,2]
[377297943,1754323878568,-4000.0,0.00054416,8]
[377297944,1754323878578,-500000.0,0.0005444,30]
[377297945,1754323878587,-151.0,0.0005444,120]
[377297946,1754323878597,-222.510642,0.0005444,120]
[377297947,1754323878607,-512.756802,0.0005444,120]
[377297948,1754323878616,-512.756802,0.0005444,120]
[377297949,1754323878626,-151.0,0.0005444,120]
[377297950,1754323878635,-309.660303,0.0005444,120]
[377297951,1754323878645,-309.660303,0.0005444,120]
[377297952,1754323878654,-305.054583,0.0005444,120]
[377297953,1754323878664,-305.054583,0.0005444,120]
[377297954,1754323878674,-704.590221,0.0005444,120]
[377297955,1754323878683,-704.590221,0.0005444,120]
[377297956,1754323878692,-151.0,0.0005444,120]
[377297957,1754323878702,-1030.083822,0.0005444,120]
[377297958,1754323878711,-1030.083822,0.0005444,120]
[377297959,1754323878720,-190.35187,0.0005444,120]
[377297960,1754323878730,-151.0,0.0005444,120]
[377297961,1754323878739,-190.35187,0.0005444,120]
[377297962,1754323878749,-390.157222,0.0005444,120]
[377297963,1754323878758,-390.157222,0.0005444,120]
[377297964,1754323878767,-344.725477,0.0005444,120]
[377297965,1754323878777,-344.725477,0.0005444,120]
[377297966,1754323878787,-151.0,0.0005444,120]
[377297967,1754323878797,-189.632918,0.0005444,120]
[377297968,1754323878806,-210.11698,0.0005444,120]
[377297969,1754323878815,-189.632918,0.0005444,120]
[377297970,1754323878825,-210.11698,0.0005444,120]
[377297971,1754323878835,-151.0,0.0005444,120]
[377297972,1754323878845,-151.0,0.0005444,120]
[377297973,1754323878858,-151.0,0.0005444,120]
[377297974,1754323878867,-355.511064,0.0005444,120]
[377297975,1754323878877,-355.511064,0.0005444,120]
[377297976,1754323878887,-151.0,0.0005444,120]
[377297977,1754323878897,-492.852847,0.0005444,120]
[377297978,1754323878907,-492.852847,0.0005444,120]
[377297979,1754323878917,-1402.693651,0.0005444,120]
[377297980,1754323878927,-360.017213,0.0005444,120]
[377297981,1754323878937,-360.017213,0.0005444,120]
[377297982,1754323878946,-1402.693651,0.0005444,120]
[377297983,1754323878956,-319.600664,0.0005444,120]
[377297984,1754323878966,-499.430676,0.0005444,120]
[377297985,1754323878975,-319.600664,0.0005444,120]
[377297986,1754323878985,-153.035634,0.0005444,120]
[377297987,1754323878995,-153.035634,0.0005444,120]
[377297988,1754323879004,-499.430676,0.0005444,120]
[377297989,1754323879014,-249.15,0.00054478,120]
[377297990,1754323879024,-151.0,0.000545,120]
[377297991,1754323879035,-2110.0,0.000545,30]
[377297992,1754323879045,-708.0,0.00054521,120]
[377297993,1754323879055,-742.0,0.00054521,120]
[377297994,1754323879064,-500.0,0.00054521,120]
[377297995,1754323879074,-663.0,0.00054521,120]
[377297996,1754323879084,-557.0,0.00054521,120]
[377297997,1754323879094,-500.0,0.00054521,120]
[377297998,1754323879104,-1504.73,0.00054546,120]
[377297999,1754323879113,-385.56291696,0.00054548,120]
[377298000,1754323879123,-500.0,0.00054558,60]
[377298001,1754323879133,-1733.0,0.0005462,30]
[377298002,1754323879143,-394.0,0.0005463,30]
[377298003,1754323879152,-500.0,0.00054657,60]
[377298004,1754323879162,-287.24012987,0.00054694,15]
[377298005,1754323879172,-958.10858698,0.00054694,57]
[377298006,1754323879182,-1000.0,0.00054699,30]
[377298007,1754323879192,-500.0,0.00054724,60]
[377298008,1754323879202,-512.0,0.00054728,37]
[377298009,1754323879212,-370.5,0.00054742,120]
[377298010,1754323879222,-1314.138074,0.00054756,120]
[377298011,1754323879233,-1314.138074,0.00054756,120]
[377298012,1754323879244,-216.513413,0.00054756,120]
[377298013,1754323879254,-216.513413,0.00054756,120]
[377298014,1754323879263,-600.0,0.00054763,60]
[377298015,1754323879274,-385.56291696,0.00054767,120]
[377298016,1754323879283,-600.0,0.00054788,60]
[377298017,1754323879294,-500.0,0.00054794,120]
[377298018,1754323879304,-1500.0,0.00054794,120]
[377298019,1754323879314,-428.456364,0.00054794,120]
[377298020,1754323879330,-415.606142,0.00054794,120]
[377298021,1754323879340,-415.606142,0.00054794,120]
[377298022,1754323879350,-415.606142,0.00054794,120]
[377298023,1754323879361,-415.606142,0.00054794,120]
[377298024,1754323879371,-151.0,0.00054794,120]
[377298025,1754323879382,-151.0,0.00054794,120]
[377298026,1754323879392,-214.661825,0.00054794,120]
[377298027,1754323879403,-214.661825,0.00054794,120]
[377298028,1754323879414,-214.661825,0.00054794,120]
[377298029,1754323879424,-214.661825,0.00054794,120]
[377298030,1754323879433,-151.0,0.00054794,120]
[377298031,1754323879443,-151.0,0.00054794,120]
[377298032,1754323879452,-463.222638,0.00054794,120]
[377298033,1754323879462,-463.222638,0.00054794,120]
[377298034,1754323879471,-463.222638,0.00054794,120]
[377298035,1754323879481,-463.222638,0.00054794,120]
[377298036,1754323879492,-463.222638,0.00054794,120]
[377298037,1754323879501,-463.222638,0.00054794,120]
[377298038,1754323879511,-1274.135874,0.00054794,20]
[377298039,1754323879521,-1274.135874,0.00054794,20]
[377298040,1754323879530,-391.487444,0.00054794,120]
[377298041,1754323879541,-391.487444,0.00054794,120]
[377298042,1754323879551,-1274.135874,0.00054794,20]
[377298043,1754323879559,-1274.135874,0.00054794,20]
[377298044,1754323879569,-391.487444,0.00054794,120]
[377298045,1754323879579,-391.487444,0.00054794,120]
[377298046,1754323879588,-151.0,0.00054794,120]
[377298047,1754323879597,-151.0,0.00054794,120]
[377298048,1754323879607,-151.0,0.00054794,120]
[377298049,1754323879617,-151.0,0.00054794,120]
[377298050,1754323879626,-151.0,0.00054794,120]
[377298051,1754323879637,-151.0,0.00054794,120]
[377298052,1754323879646,-151.0,0.00054794,120]
[377298053,1754323879657,-151.0,0.00054794,120]
[377298054,1754323879667,-285.364011,0.00054794,120]
[377298055,1754323879676,-151.0,0.00054794,120]
[377298056,1754323879685,-151.0,0.00054794,120]
[377298057,1754323879695,-151.0,0.00054794,120]
[377298058,1754323879704,-151.0,0.00054794,120]
[377298059,1754323879713,-151.0,0.00054794,120]
[377298060,1754323879722,-151.0,0.00054794,120]
[377298061,1754323879733,-151.0,0.00054794,120]
[377298062,1754323879742,-247.42833,0.00054794,120]
[377298063,1754323879752,-151.0,0.00054794,120]
[377298064,1754323879761,-151.0,0.00054794,120]
[377298065,1754323879771,-151.0,0.00054794,120]
[377298066,1754323879780,-151.0,0.00054794,120]
[377298067,1754323879791,-151.0,0.00054794,120]
[377298068,1754323879800,-151.0,0.00054794,120]
[377298069,1754323879810,-151.0,0.00054794,120]
[377298070,1754323879822,-169.942854,0.00054794,120]
[377298071,1754323879832,-151.0,0.00054794,120]
[377298072,1754323879842,-173.24989,0.00054794,120]
[377298073,1754323879853,-173.24989,0.00054794,120]
[377298074,1754323879865,-173.24989,0.00054794,120]
[377298075,1754323879875,-173.24989,0.00054794,120]
[377298076,1754323879885,-173.24989,0.00054794,120]
[377298077,1754323879895,-173.24989,0.00054794,120]
[377298078,1754323879904,-856.162897,0.00054794,120]
[377298079,1754323879914,-856.162897,0.00054794,120]
[377298080,1754323879925,-856.162897,0.00054794,120]
[377298081,1754323879934,-856.162897,0.00054794,120]
[377298082,1754323879945,-856.162897,0.00054794,120]
[377298083,1754323879955,-856.162897,0.00054794,120]
[377298084,1754323879964,-151.0,0.00054794,120]
[377298085,1754323879975,-151.0,0.00054794,120]
[377298086,1754323879987,-151.0,0.00054794,120]
[377298087,1754323879998,-177.848423,0.00054794,120]
[377298088,1754323880007,-153.518211,0.00054794,120]
[377298089,1754323880017,-212.483811,0.00054794,120]
[377298090,1754323880028,-212.483811,0.00054794,120]
[377298091,1754323880039,-212.483811,0.00054794,120]
[377298092,1754323880049,-212.483811,0.00054794,120]
[377298093,1754323880059,-328.510009,0.00054794,120]
[377298094,1754323880069,-212.483811,0.00054794,120]
[377298095,1754323880078,-328.510009,0.00054794,120]
[377298096,1754323880088,-212.483811,0.00054794,120]
[377298097,1754323880098,-328.510009,0.00054794,120]
[377298098,1754323880108,-328.510009,0.00054794,120]
[377298099,1754323880118,-328.510009,0.00054794,120]
[377298100,1754323880128,-328.510009,0.00054794,120]
[377298101,1754323880138,-151.0,0.00054794,120]
[377298102,1754323880148,-151.0,0.00054794,120]
[377298103,1754323880158,-400.0,0.00054794,120]
[377298104,1754323880168,-151.0,0.00054794,120]
[377298105,1754323880178,-151.0,0.00054794,120]
[377298106,1754323880188,-151.0,0.00054794,120]
[377298107,1754323880198,-151.0,0.00054794,120]
[377298108,1754323880208,-151.0,0.00054794,120]
[377298109,1754323880218,-151.0,0.00054794,120]
[377298110,1754323880228,-182.39767,0.00054794,120]
[377298111,1754323880237,-151.0,0.00054794,120]
[377298112,1754323880247,-151.0,0.00054794,120]
[377298113,1754323880257,-151.0,0.00054794,120]
[377298114,1754323880266,-151.0,0.00054794,120]
[377298115,1754323880276,-516.197833,0.00054794,120]
[377298116,1754323880287,-516.197833,0.00054794,120]
[377298117,1754323880297,-516.197833,0.00054794,120]
[377298118,1754323880307,-516.197833,0.00054794,120]
[377298119,1754323880318,-516.197833,0.00054794,120]
[377298120,1754323880332,-516.197833,0.00054794,120]
[377298121,1754323880342,-288.893334,0.00054794,120]
[377298122,1754323880352,-288.893334,0.00054794,120]
[377298123,1754323880362,-288.893334,0.00054794,120]
[377298124,1754323880372,-288.893334,0.00054794,120]
[377298125,1754323880382,-288.893334,0.00054794,120]
[377298126,1754323880391,-288.893334,0.00054794,120]
[377298127,1754323880402,-278.955316,0.00054794,120]
[377298128,1754323880412,-278.955316,0.00054794,120]
[377298129,1754323880422,-278.955316,0.00054794,120]
[377298130,1754323880431,-278.955316,0.00054794,120]
[377298131,1754323880441,-278.955316,0.00054794,120]
[377298132,1754323880451,-278.955316,0.00054794,120]
[377298133,1754323880461,-151.0,0.00054794,120]
[377298134,1754323880470,-151.0,0.00054794,120]
[377298135,1754323880480,-151.0,0.00054794,120]
[377298136,1754323880491,-259.242267,0.00054794,120]
[377298137,1754323880500,-766.426044,0.00054794,120]
[377298138,1754323880510,-766.426044,0.00054794,120]
[377298139,1754323880520,-766.426044,0.00054794,120]
[377298140,1754323880530,-766.426044,0.00054794,120]
[377298141,1754323880541,-766.426044,0.00054794,120]
[377298142,1754323880551,-766.426044,0.00054794,120]
[377298143,1754323880560,-1314.138074,0.00054794,120]
[377298144,1754323880570,-1314.138074,0.00054794,120]
[377298145,1754323880579,-400.0,0.00054794,120]
[377298146,1754323880589,-1314.138074,0.00054794,120]
[377298147,1754323880598,-400.0,0.00054794,120]
[377298148,1754323880608,-1314.138074,0.00054794,120]
[377298149,1754323880618,-1314.138074,0.00054794,120]
[377298150,1754323880627,-400.0,0.00054794,120]
[377298151,1754323880636,-1314.138084,0.00054794,120]
[377298152,1754323880646,-400.0,0.00054794,120]
[377298153,1754323880656,-400.0,0.00054794,120]
[377298154,1754323880665,-151.0,0.00054794,120]
[377298155,1754323880675,-151.0,0.00054794,120]
[377298156,1754323880685,-151.0,0.00054794,120]
[377298157,1754323880695,-400.0,0.00054794,120]
[377298158,1754323880704,-400.0,0.00054794,120]
[377298159,1754323880714,-400.0,0.00054794,120]
[377298160,1754323880724,-400.0,0.00054794,120]
[377298161,1754323880734,-400.66514956,0.00054794,120]
[377298162,1754323880743,-151.0,0.00054794,120]
[377298163,1754323880753,-151.0,0.00054794,120]
[377298164,1754323880762,-151.0,0.00054794,120]
[377298165,1754323880772,-400.0,0.00054794,120]
[377298166,1754323880992,-400.0,0.00054794,120]
[377298167,1754323881019,-373.18660364,0.00054794,120]
[377298168,1754323881030,-400.0,0.00054794,120]
[377298169,1754323881041,-400.0,0.00054794,120]
[377298170,1754323881051,-400.0,0.00054794,120]
[377298171,1754323881060,-151.0,0.00054794,60]
[377298172,1754323881070,-151.0,0.00054794,60]
[377298173,1754323881080,-151.0,0.00054794,60]
[377298174,1754323881090,-400.0,0.00054794,120]
[377298175,1754323881100,-500.0,0.00054794,120]
[377298176,1754323881111,-500.0,0.00054794,120]
[377298177,1754323881121,-500.0,0.00054794,120]
[377298178,1754323881130,-216.513413,0.00054794,120]
[377298179,1754323881140,-216.513413,0.00054794,120]
[377298180,1754323881150,-216.513413,0.00054794,120]
[377298181,1754323881160,-400.0,0.00054794,120]
[377298182,1754323881170,-216.513413,0.00054794,120]
[377298183,1754323881179,-216.513413,0.00054794,120]
[377298184,1754323881189,-216.513405,0.00054794,120]
[377298185,1754323881199,-511.55178483,0.00054794,120]
[377298186,1754323881209,-400.0,0.00054794,120]
[377298187,1754323881219,-400.0,0.00054794,120]
[377298188,1754323881228,-400.0,0.00054794,120]
[377298189,1754323881238,-400.0,0.00054794,120]
[377298190,1754323881247,-400.0,0.00054794,120]
[377298191,1754323881258,-400.0,0.00054794,120]
[377298192,1754323881267,-400.0,0.00054794,120]
[377298193,1754323881277,-816.98,0.00054794,120]
[377298194,1754323881287,-400.0,0.00054794,120]
[377298195,1754323881297,-816.379562,0.00054794,120]
[377298196,1754323881306,-816.379562,0.00054794,120]
[377298197,1754323881316,-816.379562,0.00054794,120]
[377298198,1754323881329,-151.0,0.00054794,120]
[377298199,1754323881339,-400.0,0.00054794,120]
[377298200,1754323881349,-180.047589,0.00054794,120]
[377298201,1754323881358,-496.48113577,0.00054794,120]
[377298202,1754323881368,-400.0,0.00054794,120]
[377298203,1754323881378,-400.0,0.00054794,120]
[377298204,1754323881387,-500.0,0.00054794,120]
[377298205,1754323881398,-500.0,0.00054794,120]